[Event "Titled Tuesday Blitz November 22 Late 2022"]
[White "Koutlas, Nikolaos"]
[Black "Cardoso Cardoso, Jose Gabriel"]
[WhiteFideId "25827138"]
[BlackFideId "4430492"]
[WhiteElo "2167"]
[BlackElo "2484"]
[Result "0-1"]
[Round "09"]
[TimeControl "180+1"]
[Date "2022.11.22"]
[WhiteClock "0:00:04"]
[BlackClock "0:00:07"]

1. c4 {[%clk 0:02:59]}  c6 {[%clk 0:02:56]} 2. Nf3 {[%clk 0:02:56]}  d5 {[%clk 0:02:57]} 3. e3 {[%clk 0:02:57]}  Nf6 {[%clk 0:02:55]} 4. Nc3 {[%clk 0:02:57]}  e6 {[%clk 0:02:48]} 5. b3 {[%clk 0:02:55]}  Nbd7 {[%clk 0:02:44]} 6. d4 {[%clk 0:02:55]}  Bd6 {[%clk 0:02:36]} 7. Be2 {[%clk 0:02:54]}  O-O {[%clk 0:02:34]} 8. O-O {[%clk 0:02:52]}  b6 {[%clk 0:02:28]} 9. Bb2 {[%clk 0:02:51]}  Bb7 {[%clk 0:02:28]} 10. Rc1 {[%clk 0:02:51]}  Qe7 {[%clk 0:02:22]} 11. Qc2 {[%clk 0:02:50]}  Rac8 {[%clk 0:02:20]} 12. Qb1 {[%clk 0:02:48]}  c5 {[%clk 0:02:10]} 13. cxd5 {[%clk 0:02:47]}  exd5 {[%clk 0:02:09]} 14. Rfd1 {[%clk 0:02:39]}  Rfe8 {[%clk 0:02:05]} 15. Bf1 {[%clk 0:02:23]}  a6 {[%clk 0:01:56]} 16. g3 {[%clk 0:02:11]}  c4 {[%clk 0:01:53]} 17. Bg2 {[%clk 0:01:49]}  b5 {[%clk 0:01:52]} 18. bxc4 {[%clk 0:01:40]}  dxc4 {[%clk 0:01:45]} 19. a3 {[%clk 0:01:36]}  Bxa3 {[%clk 0:01:34]} 20. Bxa3 {[%clk 0:01:33]}  Qxa3 {[%clk 0:01:35]} 21. d5 {[%clk 0:01:22]}  b4 {[%clk 0:01:21]} 22. Na2 {[%clk 0:01:21]}  a5 {[%clk 0:01:14]} 23. Nd4 {[%clk 0:01:04]}  Rc5 {[%clk 0:00:52]} 24. e4 {[%clk 0:00:43]}  c3 {[%clk 0:00:44]} 25. Nxc3 {[%clk 0:00:31]}  Rxc3 {[%clk 0:00:42]} 26. Nb5 {[%clk 0:00:28]}  Rxc1 {[%clk 0:00:41]} 27. Rxc1 {[%clk 0:00:24]}  Qa4 {[%clk 0:00:34]} 28. Nd6 {[%clk 0:00:24]}  Rb8 {[%clk 0:00:16]} 29. Nxb7 {[%clk 0:00:22]}  Rxb7 {[%clk 0:00:17]} 30. e5 {[%clk 0:00:11]}  Ne8 {[%clk 0:00:06]} 31. Rc8 {[%clk 0:00:06]}  Nb6 {[%clk 0:00:07]} 32. Rd8 {[%clk 0:00:04]}  Rc7 {[%clk 0:00:03]} 33. d6 {[%clk 0:00:04]}  Rc8 {[%clk 0:00:04]} 34. Rxc8 {[%clk 0:00:03]}  Nxc8 {[%clk 0:00:05]} 35. Bh3 {[%clk 0:00:02]}  Ncxd6 {[%clk 0:00:05]} 36. exd6 {[%clk 0:00:02]}  Nxd6 {[%clk 0:00:06]} 37. Qd3 {[%clk 0:00:02]}  Qa1+ {[%clk 0:00:05]} 38. Kg2 {[%clk 0:00:03]}  Qe5 {[%clk 0:00:05]} 39. Bg4 {[%clk 0:00:02]}  Qe4+ {[%clk 0:00:06]} 40. Qxe4 {[%clk 0:00:02]}  Nxe4 {[%clk 0:00:06]} 41. Bf3 {[%clk 0:00:02]}  Nc3 {[%clk 0:00:07]} 42. Bc6 {[%clk 0:00:03]}  b3 {[%clk 0:00:07]} 43. Kf3 {[%clk 0:00:04]}  b2 {[%clk 0:00:07]} 0-1


[Site "https://www.chess.com"]

[Event "Titled Tuesday Blitz November 22 Late 2022"]
[White "Kovacevic, Radmila"]
[Black "Prydun, Andriy"]
[WhiteFideId "933171"]
[BlackFideId "14145898"]
[WhiteElo "2208"]
[BlackElo "2163"]
[Result "1-0"]
[Round "09"]
[TimeControl "180+1"]
[Date "2022.11.23"]
[WhiteClock "0:00:22"]
[BlackClock "0:00:01"]

1. e4 {[%clk 0:03:00]}  c6 {[%clk 0:02:58]} 2. d4 {[%clk 0:03:00]}  d5 {[%clk 0:02:58]} 3. e5 {[%clk 0:02:59]}  Bf5 {[%clk 0:02:57]} 4. c3 {[%clk 0:02:57]}  e6 {[%clk 0:02:54]} 5. Be3 {[%clk 0:02:55]}  Ne7 {[%clk 0:02:50]} 6. b4 {[%clk 0:02:54]}  Nd7 {[%clk 0:02:45]} 7. Nd2 {[%clk 0:02:52]}  Bg6 {[%clk 0:02:40]} 8. g4 {[%clk 0:02:50]}  h5 {[%clk 0:02:38]} 9. f3 {[%clk 0:02:49]}  a6 {[%clk 0:02:22]} 10. Nh3 {[%clk 0:02:45]}  hxg4 {[%clk 0:02:18]} 11. fxg4 {[%clk 0:02:46]}  f6 {[%clk 0:02:01]} 12. Nf4 {[%clk 0:02:43]}  Bf7 {[%clk 0:02:00]} 13. exf6 {[%clk 0:02:41]}  gxf6 {[%clk 0:01:59]} 14. Qf3 {[%clk 0:02:26]}  e5 {[%clk 0:01:51]} 15. Ne2 {[%clk 0:02:25]}  a5 {[%clk 0:01:37]} 16. b5 {[%clk 0:02:20]}  cxb5 {[%clk 0:01:35]} 17. g5 {[%clk 0:02:09]}  fxg5 {[%clk 0:01:28]} 18. Bxg5 {[%clk 0:02:06]}  e4 {[%clk 0:01:23]} 19. Qf4 {[%clk 0:01:55]}  Qb8 {[%clk 0:01:00]} 20. Qe3 {[%clk 0:01:43]}  Nf5 {[%clk 0:00:52]} 21. Qf2 {[%clk 0:01:42]}  Nd6 {[%clk 0:00:42]} 22. h4 {[%clk 0:01:40]}  Qc7 {[%clk 0:00:37]} 23. Rh3 {[%clk 0:01:34]}  Ra6 {[%clk 0:00:26]} 24. Nf4 {[%clk 0:01:26]}  Rc6 {[%clk 0:00:25]} 25. Rc1 {[%clk 0:01:20]}  b4 {[%clk 0:00:25]} 26. c4 {[%clk 0:01:16]}  dxc4 {[%clk 0:00:24]} 27. d5 {[%clk 0:01:14]}  Rc5 {[%clk 0:00:23]} 28. Qd4 {[%clk 0:01:12]}  Rg8 {[%clk 0:00:21]} 29. Nxe4 {[%clk 0:01:12]}  Nf5 {[%clk 0:00:18]} 30. Nf6+ {[%clk 0:00:56]}  Nxf6 {[%clk 0:00:17]} 31. Qxf6 {[%clk 0:00:56]}  Qe7+ {[%clk 0:00:08]} 32. Kf2 {[%clk 0:00:45]}  Qxf6 {[%clk 0:00:07]} 33. Bxf6 {[%clk 0:00:45]}  b5 {[%clk 0:00:07]} 34. Re1+ {[%clk 0:00:44]}  Kd7 {[%clk 0:00:07]} 35. Rf3 {[%clk 0:00:40]}  Be7 {[%clk 0:00:04]} 36. Be5 {[%clk 0:00:34]}  Nxh4 {[%clk 0:00:03]} 37. Bh3+ {[%clk 0:00:32]}  Kd8 {[%clk 0:00:02]} 38. Rfe3 {[%clk 0:00:28]}  Ng6 {[%clk 0:00:01]} 39. Ne6+ {[%clk 0:00:22]} 1-0


[Site "https://www.chess.com"]

[Event "Titled Tuesday Blitz November 22 Late 2022"]
[White "Lashkin, Jegor"]
[Black "Mgeladze, Tamaz"]
[WhiteFideId "13907808"]
[BlackFideId "13601202"]
[WhiteElo "2368"]
[BlackElo "2288"]
[Result "1-0"]
[Round "09"]
[TimeControl "180+1"]
[Date "2022.11.22"]
[WhiteClock "0:00:53"]
[BlackClock "0:01:11"]

1. d4 {[%clk 0:03:00]}  Nf6 {[%clk 0:02:59]} 2. c4 {[%clk 0:03:00]}  e5 {[%clk 0:02:58]} 3. dxe5 {[%clk 0:03:00]}  Ng4 {[%clk 0:02:58]} 4. Bf4 {[%clk 0:03:00]}  Bb4+ {[%clk 0:02:58]} 5. Nd2 {[%clk 0:02:59]}  Nc6 {[%clk 0:02:58]} 6. Nf3 {[%clk 0:02:59]}  Qe7 {[%clk 0:02:58]} 7. e3 {[%clk 0:02:59]}  Ngxe5 {[%clk 0:02:58]} 8. Nxe5 {[%clk 0:03:00]}  Nxe5 {[%clk 0:02:59]} 9. Be2 {[%clk 0:03:00]}  O-O {[%clk 0:02:59]} 10. O-O {[%clk 0:03:00]}  a5 {[%clk 0:02:58]} 11. Nb3 {[%clk 0:02:56]}  a4 {[%clk 0:02:54]} 12. Nd4 {[%clk 0:02:56]}  a3 {[%clk 0:02:49]} 13. b3 {[%clk 0:02:55]}  d6 {[%clk 0:02:47]} 14. Qc2 {[%clk 0:02:44]}  b6 {[%clk 0:02:41]} 15. Rad1 {[%clk 0:02:13]}  Bb7 {[%clk 0:02:38]} 16. Bg3 {[%clk 0:02:06]}  Rfe8 {[%clk 0:02:32]} 17. e4 {[%clk 0:01:49]}  Bc5 {[%clk 0:02:25]} 18. Nb5 {[%clk 0:01:38]}  h5 {[%clk 0:02:11]} 19. Bxh5 {[%clk 0:01:33]}  Nc6 {[%clk 0:02:02]} 20. Rfe1 {[%clk 0:01:20]}  Nb4 {[%clk 0:01:59]} 21. Qd2 {[%clk 0:01:20]}  c6 {[%clk 0:01:44]} 22. Bxd6 {[%clk 0:01:12]}  Bxd6 {[%clk 0:01:41]} 23. Nxd6 {[%clk 0:01:12]}  c5 {[%clk 0:01:29]} 24. Bxf7+ {[%clk 0:01:10]}  Kf8 {[%clk 0:01:28]} 25. Bxe8 {[%clk 0:01:10]}  Rxe8 {[%clk 0:01:29]} 26. Qf4+ {[%clk 0:01:08]}  Qf6 {[%clk 0:01:27]} 27. Qxf6+ {[%clk 0:01:07]}  gxf6 {[%clk 0:01:27]} 28. Nxe8 {[%clk 0:01:05]}  Kxe8 {[%clk 0:01:27]} 29. Rd6 {[%clk 0:01:03]}  Bc6 {[%clk 0:01:23]} 30. Rxf6 {[%clk 0:00:59]}  Ke7 {[%clk 0:01:23]} 31. e5 {[%clk 0:01:00]}  Kd7 {[%clk 0:01:16]} 32. h4 {[%clk 0:00:54]}  Kc7 {[%clk 0:01:14]} 33. h5 {[%clk 0:00:53]}  Nxa2 {[%clk 0:01:11]} 34. Ra1 {[%clk 0:00:53]} 1-0


[Site "https://www.chess.com"]

[Event "Titled Tuesday Blitz November 22 Late 2022"]
[White "Machidon, Cristi"]
[Black "Kaplan, Avi Harrison"]
[WhiteFideId "13904590"]
[BlackFideId "30934559"]
[WhiteElo "2333"]
[BlackElo "1983"]
[Result "1-0"]
[Round "09"]
[TimeControl "180+1"]
[Date "2022.11.23"]
[WhiteClock "0:00:17"]
[BlackClock "0:00:07"]

1. e4 {[%clk 0:03:00]}  c5 {[%clk 0:02:56]} 2. b4 {[%clk 0:02:59]}  cxb4 {[%clk 0:02:56]} 3. a3 {[%clk 0:02:59]}  e5 {[%clk 0:02:49]} 4. Nf3 {[%clk 0:02:57]}  Nc6 {[%clk 0:02:35]} 5. axb4 {[%clk 0:02:56]}  Bxb4 {[%clk 0:02:33]} 6. c3 {[%clk 0:02:57]}  Bc5 {[%clk 0:02:30]} 7. d4 {[%clk 0:02:56]}  exd4 {[%clk 0:02:31]} 8. cxd4 {[%clk 0:02:56]}  Bb4+ {[%clk 0:02:30]} 9. Nbd2 {[%clk 0:02:55]}  Nf6 {[%clk 0:02:30]} 10. Bd3 {[%clk 0:02:53]}  d5 {[%clk 0:02:28]} 11. e5 {[%clk 0:02:50]}  Ne4 {[%clk 0:02:28]} 12. O-O {[%clk 0:02:48]}  Nxd2 {[%clk 0:02:24]} 13. Bxd2 {[%clk 0:02:48]}  Bxd2 {[%clk 0:02:24]} 14. Qxd2 {[%clk 0:02:49]}  O-O {[%clk 0:02:24]} 15. Qf4 {[%clk 0:02:42]}  h6 {[%clk 0:02:13]} 16. Rfe1 {[%clk 0:02:06]}  Be6 {[%clk 0:02:08]} 17. h4 {[%clk 0:01:52]}  Rc8 {[%clk 0:01:56]} 18. Re3 {[%clk 0:01:47]}  Nb4 {[%clk 0:01:52]} 19. Rxa7 {[%clk 0:01:18]}  Qb6 {[%clk 0:01:32]} 20. Ra1 {[%clk 0:01:15]}  Nxd3 {[%clk 0:01:29]} 21. Rxd3 {[%clk 0:01:16]}  Rc2 {[%clk 0:01:28]} 22. Qe3 {[%clk 0:01:07]}  Qb2 {[%clk 0:01:24]} 23. Re1 {[%clk 0:00:53]}  Ra8 {[%clk 0:01:14]} 24. Rb3 {[%clk 0:00:47]}  Qa2 {[%clk 0:01:13]} 25. Rxb7 {[%clk 0:00:46]}  Qc4 {[%clk 0:01:02]} 26. Nd2 {[%clk 0:00:36]}  Qc6 {[%clk 0:00:50]} 27. Rbb1 {[%clk 0:00:31]}  Raa2 {[%clk 0:00:48]} 28. Rbd1 {[%clk 0:00:29]}  Qb6 {[%clk 0:00:39]} 29. Rf1 {[%clk 0:00:21]}  Qb2 {[%clk 0:00:34]} 30. Nb3 {[%clk 0:00:14]}  Rc3 {[%clk 0:00:27]} 31. Rd3 {[%clk 0:00:13]}  Rc2 {[%clk 0:00:09]} 32. Nc5 {[%clk 0:00:11]}  Bf5 {[%clk 0:00:08]} 33. Rb3 {[%clk 0:00:11]}  Qa1 {[%clk 0:00:03]} 34. Rxa1 {[%clk 0:00:09]}  Rxa1+ {[%clk 0:00:04]} 35. Kh2 {[%clk 0:00:10]}  Rcc1 {[%clk 0:00:05]} 36. g4 {[%clk 0:00:10]}  Bxg4 {[%clk 0:00:04]} 37. Qd3 {[%clk 0:00:09]}  g6 {[%clk 0:00:03]} 38. Rb8+ {[%clk 0:00:07]}  Kg7 {[%clk 0:00:04]} 39. e6 {[%clk 0:00:07]}  fxe6 {[%clk 0:00:01]} 40. Rb7+ {[%clk 0:00:06]}  Kf6 {[%clk 0:00:02]} 41. Qe3 {[%clk 0:00:06]}  Rh1+ {[%clk 0:00:01]} 42. Kg3 {[%clk 0:00:06]}  Rh3+ {[%clk 0:00:01]} 43. Kf4 {[%clk 0:00:07]}  Rxe3 {[%clk 0:00:02]} 44. Kxe3 {[%clk 0:00:07]}  Bf5 {[%clk 0:00:02]} 45. Nd7+ {[%clk 0:00:07]}  Kg7 {[%clk 0:00:03]} 46. Ne5+ {[%clk 0:00:07]}  Kh8 {[%clk 0:00:03]} 47. Rf7 {[%clk 0:00:08]}  Ra3+ {[%clk 0:00:04]} 48. Kf4 {[%clk 0:00:07]}  Ra2 {[%clk 0:00:04]} 49. Rf6 {[%clk 0:00:08]}  Rxf2+ {[%clk 0:00:04]} 50. Ke3 {[%clk 0:00:08]}  Ra2 {[%clk 0:00:05]} 51. Nxg6+ {[%clk 0:00:09]}  Bxg6 {[%clk 0:00:05]} 52. Rxg6 {[%clk 0:00:09]}  Ra1 {[%clk 0:00:06]} 53. Rxh6+ {[%clk 0:00:09]}  Kg7 {[%clk 0:00:06]} 54. Rh5 {[%clk 0:00:10]}  Kg6 {[%clk 0:00:06]} 55. Rg5+ {[%clk 0:00:10]}  Kh6 {[%clk 0:00:07]} 56. Kf4 {[%clk 0:00:11]}  Rd1 {[%clk 0:00:06]} 57. Re5 {[%clk 0:00:11]}  Rxd4+ {[%clk 0:00:06]} 58. Kg3 {[%clk 0:00:12]}  Rd3+ {[%clk 0:00:04]} 59. Kf4 {[%clk 0:00:12]}  Rd4+ {[%clk 0:00:04]} 60. Kg3 {[%clk 0:00:12]}  Rd3+ {[%clk 0:00:03]} 61. Kg4 {[%clk 0:00:12]}  Rd4+ {[%clk 0:00:04]} 62. Kf3 {[%clk 0:00:12]}  Rxh4 {[%clk 0:00:03]} 63. Rxe6+ {[%clk 0:00:13]}  Kg5 {[%clk 0:00:04]} 64. Rd6 {[%clk 0:00:14]}  d4 {[%clk 0:00:03]} 65. Rd5+ {[%clk 0:00:13]}  Kf6 {[%clk 0:00:04]} 66. Ke2 {[%clk 0:00:12]}  Ke6 {[%clk 0:00:04]} 67. Rd8 {[%clk 0:00:12]}  Re4+ {[%clk 0:00:04]} 68. Kd3 {[%clk 0:00:12]}  Re1 {[%clk 0:00:04]} 69. Re8+ {[%clk 0:00:12]}  Kd5 {[%clk 0:00:04]} 70. Rxe1 {[%clk 0:00:13]}  Kc5 {[%clk 0:00:04]} 71. Re4 {[%clk 0:00:14]}  Kd5 {[%clk 0:00:04]} 72. Rxd4+ {[%clk 0:00:15]}  Kc5 {[%clk 0:00:03]} 73. Kc3 {[%clk 0:00:15]}  Kb5 {[%clk 0:00:03]} 74. Rd5+ {[%clk 0:00:15]}  Kc6 {[%clk 0:00:04]} 75. Kc4 {[%clk 0:00:15]}  Kb6 {[%clk 0:00:05]} 76. Rd6+ {[%clk 0:00:16]}  Kc7 {[%clk 0:00:05]} 77. Kc5 {[%clk 0:00:16]}  Kb7 {[%clk 0:00:06]} 78. Rd7+ {[%clk 0:00:16]}  Kb8 {[%clk 0:00:06]} 79. Kb6 {[%clk 0:00:16]}  Kc8 {[%clk 0:00:06]} 80. Rd6 {[%clk 0:00:16]}  Kb8 {[%clk 0:00:07]} 81. Rd8# {[%clk 0:00:17]} 1-0


[Site "https://www.chess.com"]

[Event "Titled Tuesday Blitz November 22 Late 2022"]
[White "Maksimovic, Bojan"]
[Black "Pranav, V"]
[WhiteFideId "14408120"]
[BlackFideId "25060783"]
[WhiteElo "2447"]
[BlackElo "2430"]
[Result "0-1"]
[Round "09"]
[TimeControl "180+1"]
[Date "2022.11.22"]
[WhiteClock "0:00:02"]
[BlackClock "0:00:33"]

1. e4 {[%clk 0:02:48]}  e5 {[%clk 0:02:59]} 2. Nf3 {[%clk 0:02:49]}  Nc6 {[%clk 0:02:59]} 3. c3 {[%clk 0:02:49]}  Nf6 {[%clk 0:02:58]} 4. d4 {[%clk 0:02:47]}  exd4 {[%clk 0:02:58]} 5. e5 {[%clk 0:02:45]}  Ne4 {[%clk 0:02:58]} 6. cxd4 {[%clk 0:02:42]}  d5 {[%clk 0:02:57]} 7. Nc3 {[%clk 0:02:32]}  Bb4 {[%clk 0:02:56]} 8. Bd2 {[%clk 0:02:20]}  O-O {[%clk 0:02:54]} 9. a3 {[%clk 0:02:18]}  Ba5 {[%clk 0:02:52]} 10. Bd3 {[%clk 0:01:52]}  Nxd2 {[%clk 0:02:48]} 11. Qxd2 {[%clk 0:01:53]}  Bg4 {[%clk 0:02:49]} 12. Ng5 {[%clk 0:00:59]}  h6 {[%clk 0:02:46]} 13. h3 {[%clk 0:00:59]}  Bh5 {[%clk 0:02:42]} 14. g4 {[%clk 0:00:35]}  Qxg5 {[%clk 0:02:41]} 15. Qxg5 {[%clk 0:00:34]}  hxg5 {[%clk 0:02:41]} 16. gxh5 {[%clk 0:00:34]}  Nxd4 {[%clk 0:02:42]} 17. b4 {[%clk 0:00:34]}  Bb6 {[%clk 0:02:36]} 18. Nxd5 {[%clk 0:00:24]}  Rfe8 {[%clk 0:02:34]} 19. O-O-O {[%clk 0:00:21]}  Rxe5 {[%clk 0:02:34]} 20. Nc3 {[%clk 0:00:16]}  Ne6 {[%clk 0:02:30]} 21. Bc4 {[%clk 0:00:14]}  c6 {[%clk 0:02:27]} 22. Rd7 {[%clk 0:00:13]}  Rb8 {[%clk 0:02:24]} 23. f3 {[%clk 0:00:11]}  Re3 {[%clk 0:02:14]} 24. Ne4 {[%clk 0:00:11]}  Rxa3 {[%clk 0:02:05]} 25. Kb2 {[%clk 0:00:11]}  Rxf3 {[%clk 0:02:04]} 26. Bxe6 {[%clk 0:00:10]}  fxe6 {[%clk 0:02:02]} 27. Nxg5 {[%clk 0:00:07]}  Rf2+ {[%clk 0:02:02]} 28. Kc3 {[%clk 0:00:06]}  Rd8 {[%clk 0:01:58]} 29. Rhd1 {[%clk 0:00:03]}  Re8 {[%clk 0:01:28]} 30. Rxb7 {[%clk 0:00:03]}  Rg2 {[%clk 0:01:28]} 31. h4 {[%clk 0:00:03]}  Rg3+ {[%clk 0:01:28]} 32. Kb2 {[%clk 0:00:03]}  Rg4 {[%clk 0:01:28]} 33. Rdd7 {[%clk 0:00:03]}  Bd4+ {[%clk 0:01:28]} 34. Kc2 {[%clk 0:00:03]}  Bf6 {[%clk 0:01:23]} 35. h6 {[%clk 0:00:03]}  gxh6 {[%clk 0:01:18]} 36. Nf7 {[%clk 0:00:03]}  Rxh4 {[%clk 0:01:13]} 37. Nd6 {[%clk 0:00:04]}  Rf8 {[%clk 0:01:12]} 38. Rxa7 {[%clk 0:00:04]}  Bd4 {[%clk 0:01:07]} 39. Rab7 {[%clk 0:00:02]}  Rf2+ {[%clk 0:00:42]} 40. Kd3 {[%clk 0:00:02]}  Rf3+ {[%clk 0:00:43]} 41. Ke2 {[%clk 0:00:02]}  Re3+ {[%clk 0:00:41]} 42. Kf2 {[%clk 0:00:03]}  Rh2+ {[%clk 0:00:37]} 43. Kg1 {[%clk 0:00:03]}  Ree2+ {[%clk 0:00:36]} 44. Kf1 {[%clk 0:00:02]}  Rhf2+ {[%clk 0:00:32]} 45. Kg1 {[%clk 0:00:02]}  Re1# {[%clk 0:00:33]} 0-1


[Site "https://www.chess.com"]

[Event "Titled Tuesday Blitz November 22 Late 2022"]
[White "Martinez Alcantara, Jose Eduardo"]
[Black "Rasulov, Vugar"]
[WhiteFideId "3805662"]
[BlackFideId "13402390"]
[WhiteElo "2705"]
[BlackElo "2509"]
[Result "0-1"]
[Round "09"]
[TimeControl "180+1"]
[Date "2022.11.22"]
[WhiteClock "0:00:01"]
[BlackClock "0:00:18"]

1. e4 {[%clk 0:03:00]}  e5 {[%clk 0:02:59]} 2. Nf3 {[%clk 0:03:00]}  Nc6 {[%clk 0:03:00]} 3. Bb5 {[%clk 0:03:00]}  Nf6 {[%clk 0:03:00]} 4. Qe2 {[%clk 0:02:59]}  d6 {[%clk 0:02:51]} 5. c3 {[%clk 0:02:59]}  g6 {[%clk 0:02:50]} 6. d3 {[%clk 0:02:59]}  Bg7 {[%clk 0:02:50]} 7. h3 {[%clk 0:02:59]}  O-O {[%clk 0:02:51]} 8. Be3 {[%clk 0:02:59]}  Bd7 {[%clk 0:02:49]} 9. Nbd2 {[%clk 0:02:58]}  Nd4 {[%clk 0:02:43]} 10. cxd4 {[%clk 0:02:16]}  Bxb5 {[%clk 0:02:43]} 11. a4 {[%clk 0:02:17]}  Ba6 {[%clk 0:02:36]} 12. O-O {[%clk 0:02:02]}  exd4 {[%clk 0:02:31]} 13. Bxd4 {[%clk 0:02:03]}  c5 {[%clk 0:02:22]} 14. Bc3 {[%clk 0:01:58]}  Re8 {[%clk 0:02:21]} 15. Rfe1 {[%clk 0:01:31]}  d5 {[%clk 0:02:14]} 16. Bxf6 {[%clk 0:01:31]}  Qxf6 {[%clk 0:02:08]} 17. e5 {[%clk 0:01:20]}  Qf5 {[%clk 0:02:07]} 18. Ra3 {[%clk 0:01:20]}  Re7 {[%clk 0:01:59]} 19. Qe3 {[%clk 0:01:17]}  Rc8 {[%clk 0:01:37]} 20. d4 {[%clk 0:01:16]}  cxd4 {[%clk 0:01:26]} 21. Qxd4 {[%clk 0:01:14]}  Qc2 {[%clk 0:01:06]} 22. a5 {[%clk 0:00:54]}  Bf8 {[%clk 0:00:51]} 23. Raa1 {[%clk 0:00:53]}  Rec7 {[%clk 0:00:47]} 24. Qf4 {[%clk 0:00:51]}  Qxb2 {[%clk 0:00:39]} 25. Nd4 {[%clk 0:00:51]}  Rc1 {[%clk 0:00:37]} 26. Raxc1 {[%clk 0:00:39]}  Rxc1 {[%clk 0:00:38]} 27. Rxc1 {[%clk 0:00:39]}  Qxc1+ {[%clk 0:00:39]} 28. Kh2 {[%clk 0:00:40]}  Qc7 {[%clk 0:00:35]} 29. N2f3 {[%clk 0:00:40]}  Bd3 {[%clk 0:00:34]} 30. g3 {[%clk 0:00:32]}  h6 {[%clk 0:00:29]} 31. Qe3 {[%clk 0:00:31]}  Be4 {[%clk 0:00:29]} 32. e6 {[%clk 0:00:31]}  Bg7 {[%clk 0:00:22]} 33. exf7+ {[%clk 0:00:28]}  Qxf7 {[%clk 0:00:23]} 34. Nd2 {[%clk 0:00:26]}  Qf6 {[%clk 0:00:20]} 35. N4b3 {[%clk 0:00:23]}  b6 {[%clk 0:00:15]} 36. axb6 {[%clk 0:00:23]}  Qxb6 {[%clk 0:00:16]} 37. Qf4 {[%clk 0:00:19]}  g5 {[%clk 0:00:15]} 38. Qe3 {[%clk 0:00:14]}  Qxe3 {[%clk 0:00:15]} 39. fxe3 {[%clk 0:00:15]}  Bc3 {[%clk 0:00:16]} 40. Nxe4 {[%clk 0:00:12]}  dxe4 {[%clk 0:00:17]} 41. Nc5 {[%clk 0:00:13]}  a5 {[%clk 0:00:17]} 42. Nxe4 {[%clk 0:00:10]}  Bb4 {[%clk 0:00:17]} 43. Nf6+ {[%clk 0:00:09]}  Kf7 {[%clk 0:00:17]} 44. Nd5 {[%clk 0:00:10]}  Ke6 {[%clk 0:00:17]} 45. Nb6 {[%clk 0:00:10]}  Kd6 {[%clk 0:00:15]} 46. e4 {[%clk 0:00:09]}  Kc6 {[%clk 0:00:15]} 47. Na4 {[%clk 0:00:09]}  Kb5 {[%clk 0:00:16]} 48. Nb2 {[%clk 0:00:10]}  Bc3 {[%clk 0:00:16]} 49. Nd3 {[%clk 0:00:09]}  a4 {[%clk 0:00:15]} 50. e5 {[%clk 0:00:09]}  Bxe5 {[%clk 0:00:11]} 51. Nxe5 {[%clk 0:00:09]}  a3 {[%clk 0:00:12]} 52. Nf3 {[%clk 0:00:09]}  a2 {[%clk 0:00:12]} 53. Nd4+ {[%clk 0:00:09]}  Kc4 {[%clk 0:00:13]} 54. Nc2 {[%clk 0:00:10]}  Kc3 {[%clk 0:00:13]} 55. Na1 {[%clk 0:00:11]}  Kb2 {[%clk 0:00:14]} 56. h4 {[%clk 0:00:12]}  Kxa1 {[%clk 0:00:14]} 57. hxg5 {[%clk 0:00:13]}  hxg5 {[%clk 0:00:14]} 58. Kh3 {[%clk 0:00:14]}  Kb1 {[%clk 0:00:15]} 59. Kg4 {[%clk 0:00:15]}  a1=Q {[%clk 0:00:16]} 60. Kxg5 {[%clk 0:00:16]}  Kc2 {[%clk 0:00:16]} 61. Kf4 {[%clk 0:00:16]}  Kd3 {[%clk 0:00:17]} 62. g4 {[%clk 0:00:17]}  Qf6+ {[%clk 0:00:17]} 63. Kg3 {[%clk 0:00:17]}  Ke3 {[%clk 0:00:18]} 64. g5 {[%clk 0:00:18]}  Qxg5+ {[%clk 0:00:18]} 65. Kh2 {[%clk 0:00:19]}  Kf3 {[%clk 0:00:18]} 66. Kh1 {[%clk 0:00:01]}  Qg2# {[%clk 0:00:18]} 0-1


[Site "https://www.chess.com"]

[Event "Titled Tuesday Blitz November 22 Late 2022"]
[White "Novikova, Galina"]
[Black "Goroshkov, Maksym"]
[WhiteFideId "4157095"]
[BlackFideId "14142716"]
[WhiteElo "1973"]
[BlackElo "2257"]
[Result "0-1"]
[Round "09"]
[TimeControl "180+1"]
[Date "2022.11.23"]
[WhiteClock "0:00:01"]
[BlackClock "0:01:01"]

1. e4 {[%clk 0:02:51]}  e5 {[%clk 0:03:00]} 2. Nf3 {[%clk 0:02:51]}  d6 {[%clk 0:03:00]} 3. d4 {[%clk 0:02:50]}  Bg4 {[%clk 0:03:01]} 4. dxe5 {[%clk 0:02:48]}  Nd7 {[%clk 0:03:01]} 5. exd6 {[%clk 0:02:45]}  Bxd6 {[%clk 0:03:02]} 6. Be2 {[%clk 0:02:40]}  Ngf6 {[%clk 0:03:02]} 7. Nc3 {[%clk 0:02:40]}  Qe7 {[%clk 0:03:02]} 8. O-O {[%clk 0:02:29]}  O-O-O {[%clk 0:03:02]} 9. Qd4 {[%clk 0:02:25]}  Bc5 {[%clk 0:02:35]} 10. Qa4 {[%clk 0:02:19]}  Nb6 {[%clk 0:02:25]} 11. Qxa7 {[%clk 0:02:08]}  Nxe4 {[%clk 0:02:26]} 12. Nxe4 {[%clk 0:01:30]}  Qxe4 {[%clk 0:02:27]} 13. Bd3 {[%clk 0:01:29]}  Qd5 {[%clk 0:02:12]} 14. Nd2 {[%clk 0:01:21]}  Rhe8 {[%clk 0:02:09]} 15. a4 {[%clk 0:01:15]}  Be2 {[%clk 0:01:59]} 16. Bxe2 {[%clk 0:01:04]}  Rxe2 {[%clk 0:02:00]} 17. a5 {[%clk 0:00:40]}  Nc4 {[%clk 0:01:50]} 18. Qa8+ {[%clk 0:00:11]}  Kd7 {[%clk 0:01:49]} 19. Qxd8+ {[%clk 0:00:08]}  Kxd8 {[%clk 0:01:50]} 20. Nf3 {[%clk 0:00:08]}  Kc8 {[%clk 0:01:25]} 21. Bf4 {[%clk 0:00:07]}  Bd6 {[%clk 0:01:18]} 22. Bxd6 {[%clk 0:00:04]}  Nxd6 {[%clk 0:01:16]} 23. a6 {[%clk 0:00:05]}  bxa6 {[%clk 0:01:15]} 24. Rxa6 {[%clk 0:00:06]}  Rxc2 {[%clk 0:01:15]} 25. h3 {[%clk 0:00:04]}  Rxb2 {[%clk 0:01:13]} 26. Rfa1 {[%clk 0:00:04]}  f6 {[%clk 0:01:09]} 27. R6a5 {[%clk 0:00:04]}  Rb1+ {[%clk 0:01:06]} 28. Rxb1 {[%clk 0:00:03]}  Qxa5 {[%clk 0:01:06]} 29. Nd4 {[%clk 0:00:02]}  Qa2 {[%clk 0:01:04]} 30. Rd1 {[%clk 0:00:01]}  Qa4 {[%clk 0:01:02]} 31. Rd2 {[%clk 0:00:01]}  Ne4 {[%clk 0:01:01]} 32. Rd3 {[%clk 0:00:01]}  Qc4 {[%clk 0:01:01]} 0-1


[Site "https://www.chess.com"]